fUSD/lending_fUSD_20240327
["ID","MTS","AMOUNT","RATE_DAILY","PERIOD"]
[320785886,1711555880512,-500.0,0.00055068,120]
[320785887,1711555880522,-524.76,0.00055068,120]
[320785888,1711555880532,-579.16,0.00055068,120]
[320785889,1711555880542,-500.0,0.00055068,120]
[320785890,1711555880551,-500.0,0.00055068,120]
[320785891,1711555880561,-500.0,0.00055068,120]
[320785892,1711555880570,-500.0,0.00055068,120]
[320785893,1711555880580,-1195.92,0.00055068,120]
[320785894,1711555880589,-804.62,0.00055068,120]
[320785895,1711555880599,-500.0,0.00055068,120]
[320785896,1711555880609,-500.0,0.00055068,120]
[320785897,1711555880619,-632.15,0.00055068,120]
[320785898,1711555880630,-500.0,0.00055068,120]
[320785899,1711555880640,-500.0,0.00055068,120]
[320785900,1711555880649,-500.0,0.00055068,120]
[320785901,1711555880659,-1171.88,0.00055068,120]
[320785902,1711555880669,-634.49,0.00055068,120]
[320785903,1711555880679,-34816.52,0.00055068,120]
[320785904,1711555880689,-500.0,0.00055068,120]
[320785905,1711555880698,-654.53,0.00055068,120]
[320785906,1711555880708,-500.0,0.00055068,120]
[320785907,1711555880718,-500.0,0.00055068,120]
[320785908,1711555880727,-1203.84,0.00055068,120]
[320785909,1711555880740,-500.0,0.00055068,120]
[320785910,1711555880750,-500.0,0.00055068,120]
[320785911,1711555880761,-449.63,0.00055068,120]
[320785912,1711555880771,-500.0,0.00055068,120]
[320785913,1711555880781,-691.32,0.00055068,120]
[320785914,1711555880790,-500.0,0.00055068,120]
[320785915,1711555880800,-411.13321614,0.00055068,120]
[320785916,1711555880809,-829.77,0.00055068,120]
[320785917,1711555880819,-5690.61,0.00055068,120]
[320785918,1711555880829,-500.0,0.00055068,120]
[320785919,1711555880838,-612.26,0.00055068,120]
[320785920,1711555880848,-500.0,0.00055068,120]
[320785921,1711555880857,-500.0,0.00055068,120]
[320785922,1711555880866,-524.6,0.00055068,120]
[320785923,1711555880876,-500.0,0.00055068,120]
[320785924,1711555880885,-500.0,0.00055068,120]
[320785925,1711555880895,-1078.44,0.00055068,120]
[320785926,1711555880905,-500.0,0.00055068,120]
[320785927,1711555880915,-1263.56,0.00055068,120]
[320785928,1711555880925,-558.73,0.00055068,120]
[320785929,1711555880936,-500.0,0.00055068,120]
[320785930,1711555880946,-500.0,0.00055068,120]
[320785931,1711555880956,-500.0,0.00055068,120]
[320785932,1711555880966,-500.0,0.00055068,120]
[320785933,1711555880976,-514.15,0.00055068,120]
[320785934,1711555880990,-500.0,0.00055068,120]
[320785935,1711555881000,-518.04,0.00055068,120]
[320785936,1711555881011,-500.0,0.00055068,120]
[320785937,1711555881022,-500.0,0.00055068,120]
[320785938,1711555881032,-1339.03,0.00055068,120]
[320785939,1711555881043,-500.0,0.00055068,120]
[320785940,1711555881053,-2819.83,0.00055068,120]
[320785941,1711555881064,-377.35,0.00055068,120]
[320785942,1711555881074,-1392.63,0.00055068,120]
[320785943,1711555881084,-4237.53,0.00055068,120]
[320785944,1711555881094,-500.0,0.00055068,120]
[320785945,1711555881104,-1021.97,0.00055068,120]
[320785946,1711555881116,-500.0,0.00055068,120]
[320785947,1711555881128,-500.0,0.00055068,120]
[320785948,1711555881138,-23692.63,0.00055068,120]
[320785949,1711555881148,-625.49,0.00055068,120]
[320785950,1711555881159,-753.14,0.00055068,120]
[320785951,1711555881169,-500.0,0.00055068,120]
[320785952,1711555881179,-500.0,0.00055068,120]
[320785953,1711555881189,-500.0,0.00055068,120]
[320785954,1711555881199,-500.0,0.00055068,120]
[320785955,1711555881209,-6105.13,0.00055068,120]
[320785956,1711555881220,-500.58,0.00055068,120]
[320785957,1711555881233,-500.0,0.00055068,120]
[320785958,1711555881244,-583.83,0.00055068,120]
[320785959,1711555881254,-659.64,0.00055068,120]
[320785960,1711555881264,-500.0,0.00055068,7]
[320785961,1711555881274,-564.94,0.00055068,120]
[320785962,1711555881285,-910.28,0.00055068,120]
[320785963,1711555881295,-2199.55,0.00055068,120]
[320785964,1711555881305,-500.0,0.00055068,120]
[320785965,1711555881315,-520.74,0.00055068,120]
[320785966,1711555881325,-673.28,0.00055068,120]
[320785967,1711555881336,-5595.4,0.00055068,120]
[320785968,1711555881346,-500.0,0.00055068,120]
[320785969,1711555881356,-744.21,0.00055068,120]
[320785970,1711555881366,-569.2,0.00055068,120]
[320785971,1711555881376,-921.69,0.00055068,120]
[320785972,1711555881386,-500.0,0.00055068,120]
[320785973,1711555881396,-500.0,0.00055068,120]
[320785974,1711555881406,-500.0,0.00055068,120]
[320785975,1711555881416,-500.0,0.00055068,120]
[320785976,1711555881427,-500.0,0.00055068,120]
[320785977,1711555881437,-500.0,0.00055068,120]
[320785978,1711555881447,-551.59,0.00055068,120]
[320785979,1711555881458,-523.14,0.00055068,120]
[320785980,1711555881469,-3703.43,0.00055068,120]
[320785981,1711555881481,-1102.59,0.00055068,120]
[320785982,1711555881494,-500.0,0.00055068,120]
[320785983,1711555881506,-689.32,0.00055068,120]
[320785984,1711555881516,-500.0,0.00055068,120]
[320785985,1711555881527,-701.23,0.00055068,120]
[320785986,1711555881537,-500.0,0.00055068,120]
[320785987,1711555881547,-2464.06,0.00055068,120]
[320785988,1711555881557,-15875.85,0.00055068,120]
[320785989,1711555881568,-500.0,0.00055068,120]
[320785990,1711555881578,-589.17,0.00055068,120]
[320785991,1711555881588,-500.0,0.00055068,120]
[320785992,1711555881600,-500.0,0.00055068,120]
[320785993,1711555881610,-1937.89,0.00055068,120]
[320785994,1711555881621,-500.0,0.00055068,120]
[320785995,1711555881632,-500.0,0.00055068,120]
[320785996,1711555881643,-598.88,0.00055068,120]
[320785997,1711555881654,-1230.88,0.00055068,120]
[320785998,1711555881665,-2440.25,0.00055068,120]
[320785999,1711555881675,-1859.92,0.00055068,120]
[320786000,1711555881686,-551.61675512,0.00055068,120]
[320786001,1711555881697,-930.82,0.00055068,120]
[320786002,1711555881708,-500.0,0.00055068,120]
[320786003,1711555881719,-912.34,0.00055068,120]
[320786004,1711555881731,-1000.9,0.00055068,120]
[320786005,1711555881745,-769.7,0.00055068,120]
[320786006,1711555881756,-500.0,0.00055068,120]
[320786007,1711555881766,-2049.42,0.00055068,120]
[320786008,1711555881777,-365.55129059,0.00055068,120]
[320786009,1711555881787,-500.0,0.00055068,120]
[320786010,1711555881798,-6420.03,0.00055068,120]
[320786011,1711555881808,-54111.41,0.00055068,120]
[320786012,1711555881818,-587.29,0.00055068,120]
[320786013,1711555881829,-500.0,0.00055068,120]
[320786014,1711555881839,-500.0,0.00055068,120]
[320786015,1711555881849,-500.0,0.00055068,120]
[320786016,1711555881859,-4144.22,0.00055068,120]
[320786017,1711555881869,-665.42,0.00055068,120]
[320786018,1711555881880,-983.43,0.00055068,120]
[320786019,1711555881890,-2706.27,0.00055068,120]
[320786020,1711555881901,-1571.18,0.00055068,120]
[320786021,1711555881911,-566.18,0.00055068,120]
[320786022,1711555881922,-2551.37,0.00055068,120]
[320786023,1711555881933,-500.0,0.00055068,120]
[320786024,1711555881943,-4754.25,0.00055068,120]
[320786025,1711555881954,-4872.03,0.00055068,120]
[320786026,1711555881965,-1087.19,0.00055068,120]
[320786027,1711555881975,-699.37,0.00055068,120]
[320786028,1711555881989,-2124.69,0.00055068,120]
[320786029,1711555881999,-500.0,0.00055068,120]
[320786030,1711555882009,-500.0,0.00055068,120]
[320786031,1711555882019,-500.0,0.00055068,120]
[320786032,1711555882028,-966.35,0.00055068,120]
[320786033,1711555882038,-5561.81,0.00055068,120]
[320786034,1711555882048,-1284.1,0.00055068,120]
[320786035,1711555882058,-711.34,0.00055068,120]
[320786036,1711555882067,-2741.47,0.00055068,120]
[320786037,1711555882077,-1876.3,0.00055068,120]
[320786038,1711555882087,-500.0,0.00055068,120]
[320786039,1711555882096,-2598.47,0.00055068,120]
[320786040,1711555882106,-2280.26,0.00055068,120]
[320786041,1711555882118,-1391.61,0.00055068,120]
[320786042,1711555882127,-1429.9,0.00055068,120]
[320786043,1711555882137,-500.0,0.00055068,120]
[320786044,1711555882146,-704.02,0.00055068,120]
[320786045,1711555882158,-1140.85,0.00055068,120]
[320786046,1711555882169,-5917.63,0.00055068,120]
[320786047,1711555882179,-500.0,0.00055068,120]
[320786048,1711555882189,-2509.99,0.00055068,120]
[320786049,1711555882199,-996.67,0.00055068,120]
[320786050,1711555882209,-10580.92,0.00055068,120]
[320786051,1711555882219,-500.0,0.00055068,120]
[320786052,1711555882229,-552.78,0.00055068,120]
[320786053,1711555882244,-1442.1,0.00055068,120]
[320786054,1711555882254,-3750.14,0.00055068,120]
[320786055,1711555882264,-1480.07,0.00055068,120]
[320786056,1711555882274,-500.0,0.00055068,120]
[320786057,1711555882285,-4030.03,0.00055068,120]
[320786058,1711555882295,-1488.27,0.00055068,120]
[320786059,1711555882304,-2545.5,0.00055068,120]
[320786060,1711555882314,-500.0,0.00055068,120]
[320786061,1711555882324,-2130.92,0.00055068,120]
[320786062,1711555882333,-3408.52,0.00055068,120]
[320786063,1711555882343,-1661.29,0.00055068,120]
[320786064,1711555882352,-500.0,0.00055068,120]
[320786065,1711555882362,-1608.7,0.00055068,120]
[320786066,1711555882371,-500.0,0.00055068,120]
[320786067,1711555882381,-1509.47,0.00055068,120]
[320786068,1711555882391,-3655.31,0.00055068,120]
[320786069,1711555882400,-417.92723757,0.00055068,120]
[320786070,1711555882410,-4663.33,0.00055068,120]
[320786071,1711555882419,-975.3,0.00055068,120]
[320786072,1711555882429,-608.93,0.00055068,120]
[320786073,1711555882440,-1974.63,0.00055068,120]
[320786074,1711555882450,-951.26,0.00055068,120]
[320786075,1711555882460,-10765.87,0.00055068,120]
[320786076,1711555882470,-3909.78,0.00055068,120]
[320786077,1711555882483,-2649.69,0.00055068,120]
[320786078,1711555882493,-1021.43,0.00055068,120]
[320786079,1711555882503,-1204.25,0.00055068,120]
[320786080,1711555882513,-2113.78,0.00055068,120]
[320786081,1711555882524,-3079.13,0.00055068,120]
[320786082,1711555882533,-509.78,0.00055068,120]
[320786083,1711555882544,-500.0,0.00055068,120]
[320786084,1711555882554,-15879.71,0.00055068,120]
[320786085,1711555882563,-770.92,0.00055068,120]
[320786086,1711555882573,-2345.3,0.00055068,120]
[320786087,1711555882583,-5347.94,0.00055068,120]
[320786088,1711555882593,-500.0,0.00055068,120]
[320786089,1711555882603,-8071.86,0.00055068,120]
[320786090,1711555882614,-2855.54,0.00055068,120]
[320786091,1711555882624,-231.75859994,0.00055068,120]
[320786092,1711555882634,-500.0,0.00055068,120]
[320786093,1711555882644,-1888.04,0.00055068,120]
[320786094,1711555882654,-500.0,0.00055068,120]
[320786095,1711555882665,-2108.72,0.00055068,120]
[320786096,1711555882674,-1550.55,0.00055068,120]
[320786097,1711555882684,-989.07,0.00055068,120]
[320786098,1711555882694,-13927.0,0.00055068,120]
[320786099,1711555882704,-500.0,0.00055068,120]
[320786100,1711555882713,-1603.31,0.00055068,120]
[320786101,1711555882723,-1762.3,0.00055068,120]
[320786102,1711555882733,-10720.57,0.00055068,120]
[320786103,1711555882743,-500.0,0.00055068,120]
[320786104,1711555882753,-500.0,0.00055068,120]
[320786105,1711555882763,-3734.86,0.00055068,120]
[320786106,1711555882774,-500.0,0.00055068,120]
[320786107,1711555882784,-12451.76,0.00055068,120]
[320786108,1711555882794,-1116.58,0.00055068,120]
[320786109,1711555882804,-196.0,0.00055068,60]
[320786110,1711555882814,-3252.39,0.00055068,120]
[320786111,1711555882824,-4938.81,0.00055068,120]
[320786112,1711555882834,-500.0,0.00055068,120]
[320786113,1711555882843,-2206.47,0.00055068,120]
[320786114,1711555882853,-2668.03,0.00055068,120]
[320786115,1711555882863,-196.0,0.00055068,60]
[320786116,1711555882873,-2001.18,0.00055068,120]
[320786117,1711555882883,-9849.31,0.00055068,120]
[320786118,1711555882894,-1391.876613,0.00055068,120]
[320786119,1711555882904,-4956.45,0.00055068,120]
[320786120,1711555882916,-2986.85,0.00055068,120]
[320786121,1711555882927,-531.56,0.00055068,120]
[320786122,1711555882938,-3065.59,0.00055068,120]
[320786123,1711555882948,-500.0,0.00055068,120]
[320786124,1711555882958,-2197.12,0.00055068,120]
[320786125,1711555882968,-500.0,0.00055068,120]
[320786126,1711555882977,-1391.876613,0.00055068,120]
[320786127,1711555882989,-963.05,0.00055068,120]
[320786128,1711555882999,-500.0,0.00055068,120]
[320786129,1711555883010,-2275.29,0.00055068,120]
[320786130,1711555883020,-610.07,0.00055068,120]
[320786131,1711555883030,-500.0,0.00055068,120]
[320786132,1711555883039,-6100.22,0.00055068,120]
[320786133,1711555883049,-1765.05,0.00055068,120]
[320786134,1711555883061,-3526.44,0.00055068,120]
[320786135,1711555883071,-876.17,0.00055068,120]
[320786136,1711555883080,-500.0,0.00055068,120]
[320786137,1711555883090,-500.0,0.00055068,120]
[320786138,1711555883101,-500.0,0.00055068,120]
[320786139,1711555883112,-538.57,0.00055068,120]
[320786140,1711555883123,-3223.1,0.00055068,120]
[320786141,1711555883133,-37831.55,0.00055068,120]
[320786142,1711555883143,-1923.39,0.00055068,120]
[320786143,1711555883154,-3984.46,0.00055068,120]
[320786144,1711555883166,-2049.23,0.00055068,120]
[320786145,1711555883366,-500.0,0.00055068,120]
[320786146,1711555883376,-908.28,0.00055068,120]
[320786147,1711555883386,-1881.27,0.00055068,120]
[320786148,1711555883395,-1003.99,0.00055068,120]
[320786149,1711555883405,-560.17,0.00055068,120]
[320786150,1711555883414,-1126.67,0.00055068,120]
[320786151,1711555883423,-982.68,0.00055068,120]
[320786152,1711555883434,-3977.93,0.00055068,120]
[320786153,1711555883443,-4201.13,0.00055068,120]
[320786154,1711555883453,-1477.02,0.00055068,120]
[320786155,1711555883463,-759.9,0.00055068,120]
[320786156,1711555883474,-500.0,0.00055068,120]
[320786157,1711555883484,-1752.93,0.00055068,120]
[320786158,1711555883494,-2264.79,0.00055068,120]
[320786159,1711555883504,-500.0,0.00055068,120]
[320786160,1711555883514,-1691.32,0.00055068,120]
[320786161,1711555883523,-980.57,0.00055068,120]
[320786162,1711555883532,-615.02,0.00055068,120]
[320786163,1711555883542,-4059.54,0.00055068,120]
[320786164,1711555883552,-667.42,0.00055068,120]
[320786165,1711555883561,-1684.5,0.00055068,120]
[320786166,1711555883570,-783.93,0.00055068,120]
[320786167,1711555883579,-1889.11,0.00055068,120]
[320786168,1711555883589,-1200.63,0.00055068,120]
[320786169,1711555883598,-1686.38,0.00055068,120]
[320786170,1711555883608,-500.0,0.00055068,120]
[320786171,1711555883617,-2698.4,0.00055068,120]
[320786172,1711555883627,-776.98,0.00055068,120]
[320786173,1711555883638,-253.100746,0.00055068,14]
[320786174,1711555883647,-401.803918,0.00055068,120]
[320786175,1711555883656,-4442.43,0.00055068,120]
[320786176,1711555883665,-11859.21,0.00055068,21]
[320786177,1711555883675,-3457.11,0.00055068,120]
[320786178,1711555883684,-500.0,0.00055068,120]
[320786179,1711555883694,-500.0,0.00055068,120]
[320786180,1711555883704,-500.0,0.00055068,120]
[320786181,1711555883713,-150.0,0.00055069,14]
[320786182,1711555883722,-152.7276918,0.00055076,120]
[320786183,1711555883733,-155.97461956,0.00055076,120]
[320786184,1711555883743,-150.0,0.0005509,14]
[320786185,1711555883752,-150.0,0.00055093,14]
[320786186,1711555883762,-150.0,0.00055099,30]
[320786187,1711555883771,-150.0,0.00055099,30]
[320786188,1711555883780,-152.51,0.000551,8]
[320786189,1711555883790,-152.51,0.000551,8]
[320786190,1711555883799,-152.51,0.000551,8]
[320786191,1711555883809,-152.51,0.000551,8]
[320786192,1711555883818,-152.51,0.000551,8]
[320786193,1711555883827,-152.51,0.000551,8]
[320786194,1711555883836,-152.51,0.000551,8]
[320786195,1711555883846,-152.51,0.000551,8]
[320786196,1711555883855,-184.888124,0.000551,120]
[320786197,1711555883865,-184.888129,0.000551,120]
[320786198,1711555883874,-16058.26751047,0.000551,45]
[320786199,1711555883883,-40000.0,0.000551,40]
[320786200,1711555883893,-40000.0,0.000551,35]
[320786201,1711555883902,-40000.0,0.000551,30]
[320786202,1711555883911,-40000.0,0.000551,25]
[320786203,1711555883921,-40000.0,0.000551,20]
[320786204,1711555883930,-40000.0,0.000551,15]
[320786205,1711555883939,-40000.0,0.000551,10]
[320786206,1711555883949,-40000.0,0.000551,5]
[320786207,1711555883958,-150.67160229,0.00055102,120]
[320786208,1711555883967,-150.0,0.0005511,14]
[320786209,1711555883976,-150.0,0.0005511,14]
[320786210,1711555883988,-150.0,0.00055113,14]
[320786211,1711555883997,-150.0,0.00055121,14]
[320786212,1711555884006,-365.55129059,0.00055126,120]
[320786213,1711555884016,-150.0,0.00055128,14]
[320786214,1711555884025,-150.0,0.00055132,14]
[320786215,1711555884035,-150.0,0.00055137,14]
[320786216,1711555884044,-150.0,0.00055147,14]
[320786217,1711555884054,-150.67160229,0.00055155,120]
[320786218,1711555884063,-157.15434496,0.00055156,120]
[320786219,1711555884072,-150.0,0.00055165,14]
[320786220,1711555884081,-1443.10776462,0.00055167,120]
[320786221,1711555884091,-150.0,0.00055173,14]
[320786222,1711555884100,-152.7276918,0.00055173,120]
[320786223,1711555884109,-1500.0,0.00055175,14]
[320786224,1711555884119,-150.0,0.00055186,14]
[320786225,1711555884128,-312.3126837,0.00055188,14]
[320786226,1711555884137,-1226.8115223,0.00055188,120]
[320786227,1711555884148,-150.0,0.0005519,14]
[320786228,1711555884158,-150.0,0.00055198,14]
[320786229,1711555884167,-23201.178449,0.000552,2]
[320786230,1711555884176,-150.0,0.00055201,14]
[320786231,1711555884186,-157.15434496,0.00055202,120]
[320786232,1711555884195,-161.997484,0.00055208,30]
[320786233,1711555884204,-300.0,0.0005521,14]
[320786234,1711555884213,-150.0,0.00055211,14]
[320786235,1711555884223,-150.0,0.00055218,14]
[320786236,1711555884234,-150.0,0.00055224,14]
[320786237,1711555884243,-150.0,0.00055241,14]
[320786238,1711555884253,-150.67160229,0.00055241,120]
[320786239,1711555884262,-7500.0,0.00055242,3]
[320786240,1711555884271,-150.0,0.00055246,14]
[320786241,1711555884281,-150.0,0.0005525,14]
[320786242,1711555884291,-150.0,0.0005525,14]
[320786243,1711555884300,-150.0,0.00055252,14]
[320786244,1711555884309,-157.15434496,0.0005526,120]
[320786245,1711555884319,-150.0,0.00055261,14]
[320786246,1711555884328,-150.0,0.00055266,14]
[320786247,1711555884338,-300.0,0.00055268,14]
[320786248,1711555884347,-150.0,0.00055268,14]
[320786249,1711555884356,-150.0,0.0005527,14]
[320786250,1711555884365,-150.0,0.00055273,14]
[320786251,1711555884375,-150.0,0.00055275,14]
[320786252,1711555884384,-8000.0,0.00055285,90]
[320786253,1711555884394,-150.0,0.00055288,14]
[320786254,1711555884403,-479.0,0.000553,44]
[320786255,1711555884412,-472.0,0.000553,34]
[320786256,1711555884422,-411.85993796,0.000553,30]
[320786257,1711555884431,-150.0,0.000553,120]
[320786258,1711555884440,-221.0,0.000553,30]
[320786259,1711555884450,-351.448531,0.000553,34]
[320786260,1711555884459,-350.0,0.000553,30]
[320786261,1711555884469,-150.0,0.00055308,14]
[320786262,1711555884478,-584.0,0.00055315,120]
[320786263,1711555884490,-1264.48164586,0.00055317,14]
[320786264,1711555884500,-241.07726508,0.00055319,103]
[320786265,1711555884511,-1552.63996165,0.0005532,14]
[320786266,1711555884521,-150.0,0.00055324,14]
[320786267,1711555884530,-1500.0,0.00055332,14]
[320786268,1711555884540,-150.0,0.00055334,14]
[320786269,1711555884549,-150.0,0.00055337,14]
[320786270,1711555884559,-1797.24572035,0.00055341,120]
[320786271,1711555884569,-27732.16996571,0.00055341,120]
[320786272,1711555884579,-500.0,0.00055341,90]
[320786273,1711555884588,-1000.0,0.00055341,90]
[320786274,1711555884598,-500.0,0.00055341,90]
[320786275,1711555884607,-1467.66424018,0.00055342,4]
[320786276,1711555884617,-1130.14343401,0.00055342,4]
[320786277,1711555884626,-500.0,0.00055342,120]
[320786278,1711555884635,-500.0,0.00055342,120]
[320786279,1711555884644,-5639.63756524,0.00055342,30]
[320786280,1711555884656,-500.0,0.00055342,120]
[320786281,1711555884666,-500.0,0.00055342,120]
[320786282,1711555884675,-500.0,0.00055342,120]
[320786283,1711555884685,-500.0,0.00055342,120]
[320786284,1711555884694,-500.0,0.00055342,120]
[320786285,1711555884703,-500.0,0.00055342,120]
[320786286,1711555884712,-500.0,0.00055342,120]
[320786287,1711555884722,-500.0,0.00055342,120]
[320786288,1711555884732,-500.0,0.00055342,120]
[320786289,1711555884741,-500.0,0.00055342,120]
[320786290,1711555884750,-500.0,0.00055342,120]
[320786291,1711555884760,-500.0,0.00055342,120]
[320786292,1711555884769,-500.0,0.00055342,120]
[320786293,1711555884778,-500.0,0.00055342,120]
[320786294,1711555884788,-500.0,0.00055342,120]
[320786295,1711555884797,-500.0,0.00055342,120]
[320786296,1711555884806,-423.16164814,0.00055342,120]
[320786297,1711555884816,-549.54,0.00055342,120]
[320786298,1711555884825,-729.64,0.00055342,120]
[320786299,1711555884835,-500.0,0.00055342,120]
[320786300,1711555884844,-500.0,0.00055342,120]
[320786301,1711555884853,-500.0,0.00055342,120]
[320786302,1711555884862,-1225.27,0.00055342,120]
[320786303,1711555884871,-1275.0,0.00055342,120]
[320786304,1711555884880,-1134.63,0.00055342,120]
[320786305,1711555884889,-500.0,0.00055342,120]
[320786306,1711555884898,-329.75,0.00055342,120]
[320786307,1711555884907,-500.0,0.00055342,120]
[320786308,1711555884916,-500.0,0.00055342,120]
[320786309,1711555884925,-500.0,0.00055342,120]
[320786310,1711555884935,-500.0,0.00055342,120]
[320786311,1711555884944,-500.0,0.00055342,120]
[320786312,1711555884954,-327.88,0.00055342,120]
[320786313,1711555884963,-1457.47,0.00055342,120]
[320786314,1711555884972,-500.0,0.00055342,120]
[320786315,1711555884982,-462.71,0.00055342,120]
[320786316,1711555884991,-500.0,0.00055342,120]
[320786317,1711555885000,-500.0,0.00055342,120]
[320786318,1711555885010,-500.0,0.00055342,120]
[320786319,1711555885019,-670.64,0.00055342,120]
[320786320,1711555885028,-726.47,0.00055342,120]
[320786321,1711555885038,-500.0,0.00055342,120]
[320786322,1711555885047,-500.0,0.00055342,120]
[320786323,1711555885057,-500.0,0.00055342,120]
[320786324,1711555885066,-500.0,0.00055342,120]
[320786325,1711555885075,-500.0,0.00055342,120]
[320786326,1711555885085,-515.51,0.00055342,120]
[320786327,1711555885094,-500.0,0.00055342,120]
[320786328,1711555885104,-813.63,0.00055342,120]
[320786329,1711555885113,-151.0,0.00055342,30]
[320786330,1711555885125,-2237.32,0.00055342,120]
[320786331,1711555885135,-500.0,0.00055342,120]
[320786332,1711555885144,-1535.75,0.00055342,120]
[320786333,1711555885153,-1282.94,0.00055342,120]
[320786334,1711555885165,-500.0,0.00055342,120]
[320786335,1711555885174,-500.0,0.00055342,120]
[320786336,1711555885184,-1256.72,0.00055342,120]
[320786337,1711555885193,-525.11,0.00055342,120]
[320786338,1711555885204,-281.95,0.00055342,120]
[320786339,1711555885213,-680.33,0.00055342,120]
[320786340,1711555885223,-500.0,0.00055342,120]
[320786341,1711555885234,-500.0,0.00055342,120]
[320786342,1711555885244,-656.15,0.00055342,120]
[320786343,1711555885253,-500.0,0.00055342,120]
[320786344,1711555885262,-1752.52,0.00055342,120]
[320786345,1711555885271,-742.87,0.00055342,120]
[320786346,1711555885280,-500.0,0.00055342,120]
[320786347,1711555885291,-526.42,0.00055342,120]
[320786348,1711555885300,-500.0,0.00055342,120]
[320786349,1711555885311,-500.0,0.00055342,120]
[320786350,1711555885319,-828.26,0.00055342,120]
[320786351,1711555885328,-500.0,0.00055342,120]
[320786352,1711555885338,-500.0,0.00055342,120]
[320786353,1711555885347,-500.0,0.00055342,120]
[320786354,1711555885356,-227.79081979,0.00055342,120]
[320786355,1711555885365,-500.0,0.00055342,120]
[320786356,1711555885374,-500.0,0.00055342,120]
[320786357,1711555885383,-500.0,0.00055342,120]
[320786358,1711555885393,-672.95,0.00055342,120]
[320786359,1711555885402,-500.0,0.00055342,120]
[320786360,1711555885412,-500.0,0.00055342,120]
[320786361,1711555885421,-500.0,0.00055342,120]
[320786362,1711555885430,-500.0,0.00055342,120]
[320786363,1711555885439,-894.45,0.00055342,120]
[320786364,1711555885448,-500.0,0.00055342,120]
[320786365,1711555885457,-500.0,0.00055342,120]
[320786366,1711555885466,-500.0,0.00055342,120]
[320786367,1711555885475,-500.0,0.00055342,120]
[320786368,1711555885487,-1596.51,0.00055342,120]
[320786369,1711555885496,-500.0,0.00055342,120]
[320786370,1711555885505,-1251.29,0.00055342,120]
[320786371,1711555885514,-500.0,0.00055342,120]
[320786372,1711555885523,-500.0,0.00055342,120]
[320786373,1711555885533,-918.77,0.00055342,120]
[320786374,1711555885542,-170.14316834,0.00055342,120]
[320786375,1711555885551,-500.0,0.00055342,120]
[320786376,1711555885561,-633.03,0.00055342,120]
[320786377,1711555885570,-500.0,0.00055342,120]
[320786378,1711555885580,-524.07,0.00055342,120]
[320786379,1711555885589,-752.1,0.00055342,120]
[320786380,1711555885598,-500.0,0.00055342,60]
[320786381,1711555885608,-500.0,0.00055342,120]
[320786382,1711555885687,-477.79065532,0.00055342,120]
[320786383,1711555885696,-500.0,0.00055342,120]
[320786384,1711555885705,-813.84,0.00055342,120]
[320786385,1711555885714,-500.0,0.00055342,120]